fUSD/lending_fUSD_20240503
["ID","MTS","AMOUNT","RATE_DAILY","PERIOD"]
[325341038,1714744248240,-500.0,0.00043835,30]
[325341039,1714744248250,-500.0,0.00043835,30]
[325341040,1714744248259,-500.0,0.00043835,30]
[325341041,1714744248269,-500.0,0.00043835,30]
[325341042,1714744248278,-500.0,0.00043835,30]
[325341043,1714744248288,-500.0,0.00043835,30]
[325341044,1714744248298,-500.0,0.00043835,30]
[325341045,1714744248307,-500.0,0.00043835,30]
[325341046,1714744248317,-500.0,0.00043835,30]
[325341047,1714744248326,-500.0,0.00043835,30]
[325341048,1714744248336,-500.0,0.00043835,30]
[325341049,1714744248345,-500.0,0.00043835,30]
[325341050,1714744248355,-500.0,0.00043835,30]
[325341051,1714744248364,-1188.33,0.00043835,7]
[325341052,1714744248373,-1508.82,0.00043835,30]
[325341053,1714744248384,-937.71,0.00043835,30]
[325341054,1714744248393,-500.0,0.00043835,30]
[325341055,1714744248402,-1949.97,0.00043835,30]
[325341056,1714744248411,-1303.0,0.00043835,30]
[325341057,1714744248421,-500.0,0.00043835,30]
[325341058,1714744248432,-1757.24,0.00043835,30]
[325341059,1714744248441,-500.0,0.00043835,30]
[325341060,1714744248451,-589.83,0.00043835,30]
[325341061,1714744248460,-500.0,0.00043835,30]
[325341062,1714744248470,-1291.89,0.00043835,30]
[325341063,1714744248479,-564.27,0.00043835,30]
[325341064,1714744248489,-507.0906598,0.00043835,30]
[325341065,1714744248498,-500.0,0.00043835,30]
[325341066,1714744248508,-500.0,0.00043835,30]
[325341067,1714744248518,-500.0,0.00043835,30]
[325341068,1714744248528,-500.0,0.00043835,30]
[325341069,1714744248544,-500.43487753,0.00043835,30]
[325341070,1714744248553,-2462.95,0.00043835,30]
[325341071,1714744248563,-1027.69,0.00043835,30]
[325341072,1714744248572,-500.0,0.00043835,30]
[325341073,1714744248582,-500.0,0.00043835,30]
[325341074,1714744248592,-500.0,0.00043835,30]
[325341075,1714744248602,-699.79,0.00043835,30]
[325341076,1714744248613,-500.0,0.00043835,30]
[325341077,1714744248622,-842.3,0.00043835,30]
[325341078,1714744248632,-2105.28,0.00043835,30]
[325341079,1714744248642,-729.53,0.00043835,30]
[325341080,1714744248651,-503.24807285,0.00043835,30]
[325341081,1714744248660,-500.0,0.00043835,30]
[325341082,1714744248905,-500.0,0.00043835,30]
[325341083,1714744248917,-500.0,0.00043835,30]
[325341084,1714744248930,-500.0,0.00043835,30]
[325341085,1714744248940,-500.0,0.00043835,30]
[325341086,1714744248951,-500.0,0.00043835,30]
[325341087,1714744248961,-500.0,0.00043835,30]
[325341088,1714744248972,-500.0,0.00043835,30]
[325341089,1714744248983,-500.0,0.00043835,30]
[325341090,1714744248993,-500.0,0.00043835,30]
[325341091,1714744249003,-500.0,0.00043835,30]
[325341092,1714744249014,-500.0,0.00043835,30]
[325341093,1714744249023,-1634.22,0.00043835,30]
[325341094,1714744249032,-500.0,0.00043835,30]
[325341095,1714744249042,-561.5834275,0.00043835,30]
[325341096,1714744249052,-500.0,0.00043835,30]
[325341097,1714744249062,-500.0,0.00043835,30]
[325341098,1714744249072,-500.0,0.00043835,30]
[325341099,1714744249081,-1686.89,0.00043835,30]
[325341100,1714744249091,-1897.79,0.00043835,30]
[325341101,1714744249102,-1839.18,0.00043835,30]
[325341102,1714744249112,-848.33,0.00043835,30]
[325341103,1714744249122,-500.0,0.00043835,30]
[325341104,1714744249132,-689.86,0.00043835,30]
[325341105,1714744249143,-500.0,0.00043835,30]
[325341106,1714744249153,-500.0,0.00043835,30]
[325341107,1714744249163,-500.0,0.00043835,7]
[325341108,1714744249172,-500.0,0.00043835,30]
[325341109,1714744249186,-556.01036949,0.00043835,30]
[325341110,1714744249196,-500.0,0.00043835,30]
[325341111,1714744249206,-500.0,0.00043835,30]
[325341112,1714744249216,-2592.92,0.00043835,30]
[325341113,1714744249226,-500.0,0.00043835,30]
[325341114,1714744249236,-890.63,0.00043835,30]
[325341115,1714744249247,-2444.75,0.00043835,30]
[325341116,1714744249257,-500.64494086,0.00043835,30]
[325341117,1714744249267,-500.0,0.00043835,30]
[325341118,1714744249276,-1458.98,0.00043835,30]
[325341119,1714744249286,-857.26,0.00043835,30]
[325341120,1714744249299,-1546.11,0.00043835,30]
[325341121,1714744249311,-2631.17,0.00043835,30]
[325341122,1714744249330,-824.65,0.00043835,30]
[325341123,1714744249341,-500.0,0.00043835,30]
[325341124,1714744249352,-500.0,0.00043835,30]
[325341125,1714744249362,-500.0,0.00043835,30]
[325341126,1714744249376,-407.4933811,0.00043835,30]
[325341127,1714744249393,-553.4813814,0.00043835,30]
[325341128,1714744249410,-500.0,0.00043835,30]
[325341129,1714744249419,-500.0,0.00043835,30]
[325341130,1714744249430,-500.0,0.00043835,30]
[325341131,1714744249439,-501.55928853,0.00043835,30]
[325341132,1714744249450,-746.36,0.00043835,30]
[325341133,1714744249460,-1130.7,0.00043835,30]
[325341134,1714744249470,-500.0,0.00043835,30]
[325341135,1714744249479,-504.04661656,0.00043835,30]
[325341136,1714744249489,-1988.3,0.00043835,30]
[325341137,1714744249499,-500.0,0.00043835,30]
[325341138,1714744249508,-1341.55,0.00043835,30]
[325341139,1714744249518,-500.0,0.00043835,30]
[325341140,1714744249528,-2585.65,0.00043835,30]
[325341141,1714744249540,-500.0,0.00043835,30]
[325341142,1714744249551,-577.01,0.00043835,30]
[325341143,1714744249562,-500.0,0.00043835,30]
[325341144,1714744249572,-504.36011272,0.00043835,30]
[325341145,1714744249583,-500.0,0.00043835,30]
[325341146,1714744249592,-846.55,0.00043835,30]
[325341147,1714744249602,-500.0,0.00043835,30]
[325341148,1714744249612,-500.0,0.00043835,30]
[325341149,1714744249622,-500.0,0.00043835,30]
[325341150,1714744249634,-503.32053206,0.00043835,30]
[325341151,1714744249644,-939.16,0.00043835,30]
[325341152,1714744249653,-500.0,0.00043835,30]
[325341153,1714744249663,-500.0,0.00043835,30]
[325341154,1714744249672,-210.70071647,0.00043835,30]
[325341155,1714744249683,-1117.82,0.00043835,30]
[325341156,1714744249693,-822.47,0.00043835,30]
[325341157,1714744249703,-1493.9,0.00043835,30]
[325341158,1714744249713,-500.0,0.00043835,30]
[325341159,1714744249723,-2291.8,0.00043835,30]
[325341160,1714744249733,-1801.16,0.00043835,30]
[325341161,1714744249742,-565.05533252,0.00043835,30]
[325341162,1714744249752,-500.0,0.00043835,30]
[325341163,1714744249761,-500.0,0.00043835,30]
[325341164,1714744249771,-2294.72,0.00043835,30]
[325341165,1714744249780,-500.0,0.00043835,30]
[325341166,1714744249789,-607.96,0.00043835,30]
[325341167,1714744249799,-500.0,0.00043835,30]
[325341168,1714744249808,-2681.15,0.00043835,30]
[325341169,1714744249817,-500.0,0.00043835,30]
[325341170,1714744249827,-500.0,0.00043835,30]
[325341171,1714744249836,-1203.04,0.00043835,30]
[325341172,1714744249845,-500.0,0.00043835,31]
[325341173,1714744249855,-500.0,0.00043835,32]
[325341174,1714744249865,-500.0,0.00043835,33]
[325341175,1714744249874,-500.0,0.00043835,34]
[325341176,1714744249883,-556.15,0.00043835,30]
[325341177,1714744249893,-500.0,0.00043835,35]
[325341178,1714744249902,-500.0,0.00043835,36]
[325341179,1714744249912,-500.0,0.00043835,30]
[325341180,1714744249922,-1241.23,0.00043835,30]
[325341181,1714744249934,-500.0,0.00043835,30]
[325341182,1714744249943,-500.0,0.00043835,37]
[325341183,1714744249952,-208.98228445,0.00043835,30]
[325341184,1714744249962,-500.0,0.00043835,38]
[325341185,1714744249971,-1031.36,0.00043835,30]
[325341186,1714744249981,-500.0,0.00043835,39]
[325341187,1714744249992,-1686.34,0.00043835,30]
[325341188,1714744250001,-500.0,0.00043835,40]
[325341189,1714744250011,-719.85,0.00043835,30]
[325341190,1714744250021,-500.0,0.00043835,30]
[325341191,1714744250030,-500.0,0.00043835,41]
[325341192,1714744250040,-500.0,0.00043835,42]
[325341193,1714744250050,-500.0,0.00043835,30]
[325341194,1714744250060,-500.0,0.00043835,43]
[325341195,1714744250070,-1423.25,0.00043835,30]
[325341196,1714744250079,-500.0,0.00043835,44]
[325341197,1714744250088,-500.0,0.00043835,30]
[325341198,1714744250098,-500.0,0.00043835,45]
[325341199,1714744250108,-332.38822151,0.00043835,46]
[325341200,1714744250118,-500.0,0.00043835,30]
[325341201,1714744250127,-350.00705642,0.00043835,30]
[325341202,1714744250137,-500.0,0.00043835,30]
[325341203,1714744250147,-500.0,0.00043835,30]
[325341204,1714744250157,-500.0,0.00043835,30]
[325341205,1714744250167,-502.91587278,0.00043835,30]
[325341206,1714744250178,-523.86165913,0.00043835,30]
[325341207,1714744250187,-500.0,0.00043835,30]
[325341208,1714744250197,-167.6138364,0.00043835,30]
[325341209,1714744250208,-500.0,0.00043835,30]
[325341210,1714744250219,-2083.47,0.00043835,30]
[325341211,1714744250230,-500.0,0.00043835,30]
[325341212,1714744250241,-527.73,0.00043835,30]
[325341213,1714744250252,-500.0,0.00043835,30]
[325341214,1714744250262,-500.0,0.00043835,30]
[325341215,1714744250272,-501.23922024,0.00043835,30]
[325341216,1714744250283,-726.22,0.00043835,30]
[325341217,1714744250293,-500.0,0.00043835,30]
[325341218,1714744250303,-302.51013112,0.00043835,30]
[325341219,1714744250314,-500.0,0.00043835,30]
[325341220,1714744250325,-500.0,0.00043835,30]
[325341221,1714744250335,-581.4,0.00043835,30]
[325341222,1714744250345,-500.0,0.00043835,30]
[325341223,1714744250355,-500.0,0.00043835,30]
[325341224,1714744250365,-1556.67,0.00043835,30]
[325341225,1714744250375,-562.78,0.00043835,30]
[325341226,1714744250385,-500.0,0.00043835,30]
[325341227,1714744250395,-2293.17,0.00043835,30]
[325341228,1714744250405,-500.0,0.00043835,30]
[325341229,1714744250415,-500.0,0.00043835,30]
[325341230,1714744250424,-500.0,0.00043835,30]
[325341231,1714744250436,-500.0,0.00043835,30]
[325341232,1714744250446,-750.0,0.00043835,30]
[325341233,1714744250456,-500.0,0.00043835,30]
[325341234,1714744250466,-500.0,0.00043835,30]
[325341235,1714744250476,-500.0,0.00043835,30]
[325341236,1714744250485,-778.52,0.00043835,30]
[325341237,1714744250495,-500.0,0.00043835,30]
[325341238,1714744250505,-500.0,0.00043835,30]
[325341239,1714744250514,-500.0,0.00043835,30]
[325341240,1714744250524,-500.0,0.00043835,30]
[325341241,1714744250537,-3184.23,0.00043835,30]
[325341242,1714744250548,-500.0,0.00043835,30]
[325341243,1714744250558,-3224.79,0.00043835,30]
[325341244,1714744250569,-574.48,0.00043835,30]
[325341245,1714744250580,-500.62771929,0.00043835,30]
[325341246,1714744250590,-500.0,0.00043835,30]
[325341247,1714744250600,-500.0,0.00043835,30]
[325341248,1714744250611,-500.0,0.00043835,30]
[325341249,1714744250624,-500.0,0.00043835,30]
[325341250,1714744250636,-500.0,0.00043835,30]
[325341251,1714744250647,-500.0,0.00043835,30]
[325341252,1714744250657,-500.0,0.00043835,30]
[325341253,1714744250668,-501.20212293,0.00043835,30]
[325341254,1714744250680,-1154.28,0.00043835,30]
[325341255,1714744250690,-500.0,0.00043835,30]
[325341256,1714744250699,-500.0,0.00043835,30]
[325341257,1714744250709,-500.0,0.00043835,30]
[325341258,1714744250718,-1334.86,0.00043835,30]
[325341259,1714744250729,-670.75,0.00043835,30]
[325341260,1714744250739,-500.0,0.00043835,30]
[325341261,1714744250748,-654.42,0.00043835,30]
[325341262,1714744250758,-500.0,0.00043835,30]
[325341263,1714744250768,-2101.58,0.00043835,30]
[325341264,1714744250778,-500.0,0.00043835,30]
[325341265,1714744250789,-500.0,0.00043835,30]
[325341266,1714744250798,-500.0,0.00043835,30]
[325341267,1714744250808,-2860.15,0.00043835,30]
[325341268,1714744250818,-500.0,0.00043835,30]
[325341269,1714744250828,-500.0,0.00043835,30]
[325341270,1714744250839,-500.0,0.00043835,30]
[325341271,1714744250850,-500.0,0.00043835,30]
[325341272,1714744250859,-2297.71,0.00043835,30]
[325341273,1714744250869,-500.0,0.00043835,30]
[325341274,1714744250878,-1000.0,0.00043835,2]
[325341275,1714744250888,-500.0,0.00043835,30]
[325341276,1714744250898,-500.0,0.00043835,30]
[325341277,1714744250908,-503.571023,0.00043835,30]
[325341278,1714744250918,-500.0,0.00043835,30]
[325341279,1714744250932,-500.0,0.00043835,30]
[325341280,1714744250942,-500.0,0.00043835,30]
[325341281,1714744250951,-507.19777385,0.00043835,30]
[325341282,1714744250961,-500.0,0.00043835,30]
[325341283,1714744250971,-835.02,0.00043835,30]
[325341284,1714744250980,-710.23,0.00043835,30]
[325341285,1714744250990,-532.81,0.00043835,30]
[325341286,1714744250999,-1572.1,0.00043835,30]
[325341287,1714744251009,-500.0,0.00043835,30]
[325341288,1714744251018,-500.0,0.00043835,30]
[325341289,1714744251028,-627.73831442,0.00043835,30]
[325341290,1714744251037,-2550.62,0.00043835,30]
[325341291,1714744251046,-502.65103831,0.00043835,30]
[325341292,1714744251056,-500.0,0.00043835,30]
[325341293,1714744251065,-500.0,0.00043835,30]
[325341294,1714744251075,-500.0,0.00043835,30]
[325341295,1714744251084,-3620.83,0.00043835,30]
[325341296,1714744251093,-500.0,0.00043835,31]
[325341297,1714744251102,-500.0,0.00043835,32]
[325341298,1714744251111,-500.0,0.00043835,30]
[325341299,1714744251121,-500.0,0.00043835,30]
[325341300,1714744251129,-500.0,0.00043835,33]
[325341301,1714744251139,-500.0,0.00043835,30]
[325341302,1714744251148,-535.91623454,0.00043835,34]
[325341303,1714744251157,-500.0,0.00043835,30]
[325341304,1714744251166,-1249.18,0.00043835,30]
[325341305,1714744251176,-935.56,0.00043835,30]
[325341306,1714744251187,-500.0,0.00043835,30]
[325341307,1714744251196,-500.0,0.00043835,30]
[325341308,1714744251206,-500.0,0.00043835,30]
[325341309,1714744251215,-500.0,0.00043835,30]
[325341310,1714744251224,-3014.62,0.00043835,30]
[325341311,1714744251234,-2760.51,0.00043835,30]
[325341312,1714744251244,-500.0,0.00043835,30]
[325341313,1714744251253,-500.0,0.00043835,30]
[325341314,1714744251262,-2127.28,0.00043835,30]
[325341315,1714744251271,-500.0,0.00043835,30]
[325341316,1714744251281,-500.0,0.00043835,30]
[325341317,1714744251291,-500.0,0.00043835,30]
[325341318,1714744251301,-500.0,0.00043835,30]
[325341319,1714744251310,-2596.52,0.00043835,30]
[325341320,1714744251320,-1593.77,0.00043835,30]
[325341321,1714744251413,-500.0,0.00043835,30]
[325341322,1714744251423,-500.0,0.00043835,30]
[325341323,1714744251433,-500.0,0.00043835,30]
[325341324,1714744251442,-500.0,0.00043835,30]
[325341325,1714744251451,-500.0,0.00043835,30]
[325341326,1714744251460,-500.0,0.00043835,30]
[325341327,1714744251470,-884.42,0.00043835,30]
[325341328,1714744251486,-1090.81,0.00043835,30]
[325341329,1714744251495,-512.03933735,0.00043835,30]
[325341330,1714744251504,-2138.43,0.00043835,30]
[325341331,1714744251514,-500.0,0.00043835,30]
[325341332,1714744251523,-500.0,0.00043835,30]
[325341333,1714744251536,-1250.44,0.00043835,30]
[325341334,1714744251556,-500.0,0.00043835,30]
[325341335,1714744251569,-500.0,0.00043835,30]
[325341336,1714744251579,-1917.37,0.00043835,30]
[325341337,1714744251591,-1816.01,0.00043835,30]
[325341338,1714744251601,-500.0,0.00043835,30]
[325341339,1714744251612,-500.0,0.00043835,2]
[325341340,1714744251622,-500.0,0.00043835,30]
[325341341,1714744251631,-155.16459766,0.00043835,30]
[325341342,1714744251641,-1250.07,0.00043835,30]
[325341343,1714744251650,-500.0,0.00043835,30]
[325341344,1714744251659,-3107.82,0.00043835,30]
[325341345,1714744251669,-500.0,0.00043835,30]
[325341346,1714744251679,-500.0,0.00043835,30]
[325341347,1714744251688,-694.3,0.00043835,30]
[325341348,1714744251697,-500.0,0.00043835,30]
[325341349,1714744251706,-1192.0,0.00043835,30]
[325341350,1714744251716,-500.0,0.00043835,30]
[325341351,1714744251725,-500.4082266,0.00043835,30]
[325341352,1714744251735,-737.98,0.00043835,30]
[325341353,1714744251744,-800.07,0.00043835,30]
[325341354,1714744251754,-500.0,0.00043835,30]
[325341355,1714744251764,-500.0,0.00043835,30]
[325341356,1714744251773,-500.0,0.00043835,30]
[325341357,1714744251783,-500.0,0.00043835,30]
[325341358,1714744251793,-500.0,0.00043835,2]
[325341359,1714744251803,-500.0,0.00043835,2]
[325341360,1714744251812,-2249.53,0.00043835,30]
[325341361,1714744251822,-500.0,0.00043835,2]
[325341362,1714744251832,-500.0,0.00043835,2]
[325341363,1714744251841,-2008.07,0.00043835,30]
[325341364,1714744251851,-500.0,0.00043835,2]
[325341365,1714744251861,-500.0,0.00043835,2]
[325341366,1714744251871,-500.0,0.00043835,2]
[325341367,1714744251881,-500.0,0.00043835,2]
[325341368,1714744251891,-500.0,0.00043835,30]
[325341369,1714744251901,-420.41418253,0.00043835,2]
[325341370,1714744251912,-500.0,0.00043835,30]
[325341371,1714744251923,-981.59,0.00043835,30]
[325341372,1714744251936,-506.76888827,0.00043835,30]
[325341373,1714744251947,-1035.04,0.00043835,30]
[325341374,1714744251957,-500.0,0.00043835,30]
[325341375,1714744251966,-500.0,0.00043835,30]
[325341376,1714744251976,-1289.46,0.00043835,30]
[325341377,1714744251987,-2499.4,0.00043835,30]
[325341378,1714744251996,-508.87644531,0.00043835,30]
[325341379,1714744252007,-500.0,0.00043835,30]
[325341380,1714744252016,-500.0,0.00043835,30]
[325341381,1714744252026,-904.58,0.00043835,30]
[325341382,1714744252036,-500.0,0.00043835,30]
[325341383,1714744252047,-500.0,0.00043835,30]
[325341384,1714744252057,-500.0,0.00043835,30]
[325341385,1714744252067,-3038.63,0.00043835,30]
[325341386,1714744252078,-1483.89,0.00043835,30]
[325341387,1714744252088,-500.0,0.00043835,30]
[325341388,1714744252099,-1308.08,0.00043835,30]
[325341389,1714744252110,-2181.41,0.00043835,30]
[325341390,1714744252120,-500.0,0.00043835,30]
[325341391,1714744252130,-500.0,0.00043835,30]
[325341392,1714744252141,-500.0,0.00043835,30]
[325341393,1714744252150,-500.0,0.00043835,2]
[325341394,1714744252161,-608.48,0.00043835,30]
[325341395,1714744252171,-500.0,0.00043835,30]
[325341396,1714744252185,-500.0,0.00043835,30]
[325341397,1714744252195,-500.0,0.00043835,30]
[325341398,1714744252205,-500.0,0.00043835,30]
[325341399,1714744252214,-500.0,0.00043835,30]
[325341400,1714744252224,-500.0,0.00043835,30]
[325341401,1714744252233,-500.0,0.00043835,30]
[325341402,1714744252244,-500.0,0.00043835,30]
[325341403,1714744252255,-1276.96,0.00043835,30]
[325341404,1714744252266,-502.15333591,0.00043835,30]
[325341405,1714744252278,-500.0,0.00043835,30]
[325341406,1714744252289,-500.0,0.00043835,30]
[325341407,1714744252301,-2466.1,0.00043835,30]
[325341408,1714744252311,-1192.65,0.00043835,30]
[325341409,1714744252322,-500.0,0.00043835,30]
[325341410,1714744252333,-500.0,0.00043835,30]
[325341411,1714744252344,-500.0,0.00043835,30]
[325341412,1714744252356,-2926.77,0.00043835,2]
[325341413,1714744252367,-500.0,0.00043835,30]
[325341414,1714744252377,-500.0,0.00043835,30]
[325341415,1714744252387,-1031.26,0.00043835,30]
[325341416,1714744252398,-500.0,0.00043835,30]
[325341417,1714744252409,-742.05,0.00043835,30]
[325341418,1714744252419,-500.0,0.00043835,30]
[325341419,1714744252432,-1489.21,0.00043835,30]
[325341420,1714744252441,-500.0,0.00043835,30]
[325341421,1714744252450,-1632.92,0.00043835,30]
[325341422,1714744252461,-500.0,0.00043835,30]
[325341423,1714744252471,-500.0,0.00043835,30]
[325341424,1714744252480,-504.53303771,0.00043835,30]
[325341425,1714744252490,-500.0,0.00043835,30]
[325341426,1714744252499,-500.0,0.00043835,30]
[325341427,1714744252508,-500.0,0.00043835,30]
[325341428,1714744252518,-500.0,0.00043835,30]
[325341429,1714744252528,-500.0,0.00043835,30]
[325341430,1714744252544,-500.0,0.00043835,30]
[325341431,1714744252553,-1483.34,0.00043835,30]
[325341432,1714744252565,-500.0,0.00043835,30]
[325341433,1714744252575,-500.79740213,0.00043835,30]
[325341434,1714744252586,-500.0,0.00043835,30]
[325341435,1714744252595,-1344.06,0.00043835,30]
[325341436,1714744252604,-500.0,0.00043835,30]
[325341437,1714744252613,-899.84,0.00043835,30]
[325341438,1714744252623,-500.95911002,0.00043835,30]
[325341439,1714744252632,-500.0,0.00043835,30]
[325341440,1714744252641,-500.0,0.00043835,30]
[325341441,1714744252650,-500.0,0.00043835,30]
[325341442,1714744252659,-743.63,0.00043835,30]
[325341443,1714744252668,-500.0,0.00043835,30]
[325341444,1714744252680,-500.45005439,0.00043835,30]
[325341445,1714744252690,-500.0,0.00043835,30]
[325341446,1714744252699,-500.0,0.00043835,30]
[325341447,1714744252707,-349.92828769,0.00043835,30]
[325341448,1714744252716,-500.0,0.00043835,30]
[325341449,1714744252725,-3153.55,0.00043835,30]
[325341450,1714744252735,-503.93445918,0.00043835,30]
[325341451,1714744252744,-500.0,0.00043835,30]
[325341452,1714744252753,-2803.4,0.00043835,30]
[325341453,1714744252762,-500.0,0.00043835,30]
[325341454,1714744252772,-500.0,0.00043835,30]
[325341455,1714744252780,-1067.13,0.00043835,30]
[325341456,1714744252789,-500.0,0.00043835,30]
[325341457,1714744252798,-1188.78,0.00043835,30]
[325341458,1714744252808,-2177.37,0.00043835,30]
[325341459,1714744252817,-500.0,0.00043835,30]
[325341460,1714744252826,-643.79,0.00043835,30]
[325341461,1714744252835,-500.0,0.00043835,30]
[325341462,1714744252844,-500.0,0.00043835,30]
[325341463,1714744252853,-1496.97,0.00043835,30]
[325341464,1714744252863,-1298.0,0.00043835,30]
[325341465,1714744252872,-500.0,0.00043835,30]
[325341466,1714744252881,-500.0,0.00043835,30]
[325341467,1714744252890,-733.1,0.00043835,30]
[325341468,1714744252899,-500.0,0.00043835,30]
[325341469,1714744252908,-872.41,0.00043835,30]
[325341470,1714744252920,-1311.79,0.00043835,30]
[325341471,1714744252930,-1015.08,0.00043835,30]
[325341472,1714744252939,-2290.5,0.00043835,30]
[325341473,1714744252950,-207.55189439,0.00043835,30]
[325341474,1714744252961,-500.0,0.00043835,30]
[325341475,1714744252970,-500.0,0.00043835,30]
[325341476,1714744252979,-500.0,0.00043835,30]
[325341477,1714744252989,-1413.66,0.00043835,30]
[325341478,1714744252998,-3479.32,0.00043835,30]
[325341479,1714744253008,-502.06741701,0.00043835,30]
[325341480,1714744253018,-538.86,0.00043835,30]
[325341481,1714744253027,-500.0,0.00043835,30]
[325341482,1714744253036,-500.0,0.00043835,30]
[325341483,1714744253046,-500.0,0.00043835,30]
[325341484,1714744253056,-2879.12,0.00043835,30]
[325341485,1714744253065,-1147.01,0.00043835,30]
[325341486,1714744253074,-500.0,0.00043835,30]
[325341487,1714744253083,-500.0,0.00043835,30]
[325341488,1714744253092,-500.0,0.00043835,30]
[325341489,1714744253102,-500.0,0.00043835,30]
[325341490,1714744253111,-500.0,0.00043835,30]
[325341491,1714744253120,-1708.01,0.00043835,30]
[325341492,1714744253129,-1424.71,0.00043835,30]
[325341493,1714744253139,-500.0,0.00043835,30]
[325341494,1714744253148,-500.0,0.00043835,30]
[325341495,1714744253158,-500.0,0.00043835,30]
[325341496,1714744253167,-532.03,0.00043835,30]
[325341497,1714744253177,-500.0,0.00043835,30]
[325341498,1714744253188,-1755.72,0.00043835,30]
[325341499,1714744253196,-500.0,0.00043835,30]
[325341500,1714744253204,-500.0,0.00043835,30]
[325341501,1714744253211,-301.55398425,0.00043835,30]
[325341502,1714744253219,-500.0,0.00043835,30]
[325341503,1714744253227,-500.0,0.00043835,30]
[325341504,1714744253236,-500.0,0.00043835,30]
[325341505,1714744253246,-576.57,0.00043835,30]
[325341506,1714744253256,-500.0,0.00043835,30]
[325341507,1714744253267,-500.0,0.00043835,30]
[325341508,1714744253278,-1433.36,0.00043835,30]
[325341509,1714744253288,-858.26,0.00043835,30]
[325341510,1714744253298,-507.72544032,0.00043835,30]
[325341511,1714744253308,-500.0,0.00043835,30]
[325341512,1714744253319,-1698.08,0.00043835,30]
[325341513,1714744253329,-719.42,0.00043835,30]
[325341514,1714744253340,-621.26151197,0.00043835,30]
[325341515,1714744253351,-501.49983567,0.00043835,30]
[325341516,1714744253361,-1241.06,0.00043835,30]
[325341517,1714744253372,-1229.36,0.00043835,30]
[325341518,1714744253382,-1821.6,0.00043835,30]
[325341519,1714744253392,-500.0,0.00043835,7]
[325341520,1714744253401,-500.0,0.00043835,30]
[325341521,1714744253411,-500.0,0.00043835,30]
[325341522,1714744253421,-500.0,0.00043835,30]
[325341523,1714744253433,-1012.96,0.00043835,30]
[325341524,1714744253443,-514.34788533,0.00043835,30]
[325341525,1714744253452,-2003.78,0.00043835,30]
[325341526,1714744253462,-500.0,0.00043835,30]
[325341527,1714744253472,-190.00396215,0.00043835,30]
[325341528,1714744253482,-500.0,0.00043835,30]
[325341529,1714744253493,-500.0,0.00043835,30]
[325341530,1714744253503,-500.0,0.00043835,30]
[325341531,1714744253514,-500.0,0.00043835,30]
[325341532,1714744253523,-1979.98,0.00043835,30]
[325341533,1714744253535,-500.0,0.00043835,30]
[325341534,1714744253549,-500.0,0.00043835,31]
[325341535,1714744253558,-500.0,0.00043835,32]
[325341536,1714744253567,-1837.02,0.00043835,30]
[325341537,1714744253578,-500.0,0.00043835,33]